bitfinex/quotes_ETHUSD_20241023
["timestamp","ask_amount","ask_price","bid_price","bid_amount"]
[1729669041893,0.7661,2611.0,2610.7,1.68941911]
[1729669042415,0.7661,2611.0,2610.5,6.44755]
[1729669042416,0.7661,2611.0,2610.8,1.68941911]
[1729669043485,0.7661,2611.0,2610.7,1.68941911]
[1729669043679,0.7661,2611.0,2610.8,1.68941911]
[1729669044702,0.7661,2611.0,2610.7,1.68941911]
[1729669047493,0.7661,2611.0,2610.6,0.644755]
[1729669047692,0.7661,2611.0,2610.3,0.496]
[1729669047693,0.7661,2611.0,2610.5,1.68941911]
[1729669047954,0.7661,2611.0,2610.8,1.68941911]
[1729669048095,0.7661,2611.0,2610.9,1.68941911]
[1729669048291,0.7661,2611.0,2610.8,1.68941911]
[1729669051899,4.27191,2611.2,2610.7,0.496]
[1729669052099,4.27191,2611.2,2610.8,2.08376611]
[1729669052540,7.7187,2611.2,2610.8,2.08376611]
[1729669052745,3.44682,2611.1,2610.8,2.08376611]
[1729669058599,0.8252,2611.2,2610.8,2.08376611]
[1729669058807,3.44686,2611.1,2610.8,2.08376611]
[1729669059263,6.89376,2611.1,2610.8,2.08376611]
[1729669059595,6.89376,2611.1,2610.8,1.68941911]
[1729669060202,3.44686,2611.1,2610.8,1.68941911]
[1729669060506,3.44695,2611.0,2610.7,2.18541911]
[1729669060672,3.44686,2611.1,2610.7,2.18541911]
[1729669060673,3.44686,2611.1,2610.8,1.68941911]
[1729669060871,0.8252,2611.2,2611.0,1.68941911]
[1729669061072,0.8252,2611.2,2611.1,1.68941911]
[1729669061269,0.8252,2611.2,2611.0,1.68941911]
[1729669061807,0.8252,2611.2,2611.0,2.20308102]
[1729669062012,4.21505,2611.4,2611.1,1.68941911]
[1729669063172,3.44656,2611.3,2611.1,1.68941911]
[1729669063416,3.44656,2611.3,2611.0,1.68941911]
[1729669064310,0.7686,2611.4,2611.0,0.51366291]
[1729669064526,0.7637,2611.6,2611.3,1.68941911]
[1729669064665,0.7637,2611.6,2611.4,1.68941911]
[1729669065068,3.44612,2611.7,2611.4,1.68941911]
[1729669065286,0.7637,2611.8,2611.5,1.68941911]
[1729669065814,0.7637,2611.8,2611.6,1.68941911]
[1729669065996,0.7637,2611.8,2611.5,1.68941911]
[1729669066372,4.20961,2611.8,2611.4,1.68941911]
[1729669066580,4.20961,2611.8,2611.4,2.1294213]
[1729669066782,4.20961,2611.8,2611.5,1.68941911]
[1729669066978,0.7637,2611.8,2611.6,1.68941911]
[1729669067194,3.44584,2611.9,2611.6,1.68941911]
[1729669067573,3.44584,2611.9,2611.5,2.18541911]
[1729669068201,3.44584,2611.9,2611.5,3.13724824]
[1729669068404,3.44584,2611.9,2611.6,1.68941911]
[1729669068576,3.44584,2611.9,2611.5,6.58352824]
[1729669071514,3.44584,2611.9,2611.5,6.08752824]
[1729669072418,3.44584,2611.9,2611.5,0.95182913]
[1729669072659,0.8249,2611.5,2611.1,6.44672]
[1729669072943,3.44663,2611.3,2610.9,3.0]
[1729669073113,3.44663,2611.3,2611.0,3.28]
[1729669073543,3.44643,2611.4,2611.0,3.28]
[1729669073698,3.44643,2611.4,2610.9,4.27129018]
[1729669074023,0.8249,2611.5,2611.1,1.68941911]
[1729669075111,4.27127,2611.5,2611.1,1.68941911]
[1729669075529,4.27127,2611.5,2611.0,1.68941911]
[1729669077042,4.27127,2611.5,2611.0,5.13636911]
[1729669077333,4.27127,2611.5,2611.0,1.68941911]
[1729669077511,4.27127,2611.5,2611.0,5.13636911]
[1729669077906,0.8249,2611.5,2611.2,1.68941911]
[1729669078296,1.68941911,2612.1,2611.4,1.68941911]
[1729669078495,1.68941911,2612.1,2611.3,3.44648]
[1729669078496,3.44598,2611.8,2611.3,1.68941911]
[1729669078826,3.44616,2611.6,2611.2,1.3151466]
[1729669079026,3.44616,2611.6,2611.2,0.51362291]
[1729669079642,0.8327,2611.5,2611.1,3.44672]
[1729669079841,0.8327,2611.5,2611.1,5.13613911]
[1729669080348,0.8327,2611.5,2611.0,2.56753252]
[1729669080642,4.27905,2611.5,2611.0,3.44694]
[1729669080954,0.8327,2611.5,2611.0,5.13629911]
[1729669081244,4.27903,2611.5,2611.0,6.26982953]
[1729669081599,4.27903,2611.5,2611.0,4.58041042]
[1729669081919,0.8327,2611.5,2611.0,6.26982953]
[1729669082116,0.8327,2611.5,2611.0,4.58041042]
[1729669082117,3.44643,2611.4,2611.0,4.58041042]
[1729669082437,0.8327,2611.5,2611.3,1.68941911]
[1729669082743,0.8327,2611.5,2611.2,5.13608911]
[1729669083122,0.8327,2611.5,2611.2,3.44667]
[1729669083644,0.8327,2611.5,2611.2,5.13608911]
[1729669084041,0.8327,2611.5,2611.2,3.44667]
[1729669084341,0.8327,2611.5,2611.2,5.13608911]
[1729669084565,0.8327,2611.5,2611.3,3.44652]
[1729669084764,1.37807831,2611.7,2611.3,3.44652]
[1729669085880,4.82417831,2611.7,2611.2,3.01176352]
[1729669086760,3.44617,2611.6,2611.2,3.01176352]
[1729669086967,3.44617,2611.6,2611.2,1.32234441]
[1729669087482,1.37807831,2611.7,2611.2,4.76902441]
[1729669087635,4.82411831,2611.7,2611.2,6.45844352]
[1729669087835,3.44617,2611.6,2611.2,3.01176352]
[1729669088241,1.37807831,2611.7,2611.3,1.07833237]
[1729669088695,1.37807831,2611.7,2611.3,6.21430148]
[1729669088840,1.37807831,2611.7,2611.3,9.66078148]
[1729669089281,1.37807831,2611.7,2611.3,4.52481237]
[1729669089783,4.82410831,2611.7,2611.3,3.44648]
[1729669091813,3.44616,2611.6,2611.2,5.13607911]
[1729669091980,3.44616,2611.6,2611.2,3.44666]
[1729669092715,4.22474,2611.7,2611.2,3.44666]
[1729669098517,4.22474,2611.7,2611.2,4.24818369]
[1729669098726,4.22474,2611.7,2611.2,3.44666]
[1729669099528,4.22474,2611.7,2611.2,4.24818369]
[1729669100030,4.19939,2611.9,2611.4,7.38876]
[1729669100947,4.19939,2611.9,2611.4,3.94236]
[1729669102378,4.19939,2611.9,2611.4,5.63177911]
[1729669102667,0.7535,2611.9,2611.6,3.44609]
[1729669102827,0.7535,2611.9,2611.6,4.44169219]
[1729669103030,4.04502235,2612.0,2611.6,4.44169219]
[1729669103554,0.59938235,2612.0,2611.8,3.44589]
[1729669103771,0.59938235,2612.0,2611.6,7.42863499]
[1729669103772,0.59938235,2612.0,2611.7,0.80152369]
[1729669103980,0.59938235,2612.0,2611.8,0.7428635]
[1729669104653,0.59938235,2612.0,2611.8,4.1887535]
[1729669105379,0.7541,2612.1,2611.8,4.1887535]
[1729669105697,0.7917,2612.4,2611.9,3.44574]
[1729669105910,4.23687,2612.4,2611.9,3.44574]
[1729669106384,5.92628911,2612.4,2611.9,3.44574]
[1729669106590,4.23687,2612.4,2611.9,3.44574]
[1729669106947,0.7917,2612.4,2612.0,1.68941911]
[1729669107148,3.4448,2612.7,2612.1,3.44539]
[1729669107149,4.22994,2612.6,2612.1,3.44539]
[1729669107354,4.2297,2612.8,2612.3,1.68941911]
[1729669107596,3.4448,2612.7,2612.2,5.13477911]
[1729669107770,3.4448,2612.7,2612.3,3.0]
[1729669108574,3.4448,2612.7,2612.3,3.90128616]
[1729669109093,0.7851,2612.8,2612.3,7.34651616]
[1729669109094,4.22972,2612.8,2612.3,7.34651616]
[1729669109296,5.91913911,2612.8,2612.3,3.90128616]
[1729669109595,4.22972,2612.8,2612.3,3.90128616]
[1729669109792,4.22972,2612.8,2612.3,7.34650616]
[1729669110001,4.22972,2612.8,2612.4,1.24812253]
[1729669110850,0.7851,2612.8,2612.4,1.24812253]
[1729669111078,0.7851,2612.8,2612.4,10.32372164]
[1729669111373,0.7851,2612.8,2612.4,6.87863164]
[1729669111554,0.7851,2612.8,2612.4,5.18921253]
[1729669111755,0.7851,2612.8,2612.5,0.98786316]
[1729669111952,4.22968,2612.8,2612.5,0.98786316]
[1729669112158,4.22968,2612.8,2612.4,1.24812253]
[1729669113931,0.7851,2612.8,2612.4,1.24812253]
[1729669114165,0.7851,2612.8,2612.4,4.69313253]
[1729669115110,0.7851,2612.8,2612.5,3.44495]
[1729669115268,0.8105,2613.2,2612.7,5.13403911]
[1729669115613,0.8105,2613.2,2612.6,4.41778242]
[1729669115614,3.4442,2613.1,2612.6,4.41778242]
[1729669115897,3.4442,2613.1,2612.6,6.10720153]
[1729669116109,3.4442,2613.1,2612.7,0.95520815]
[1729669117694,6.88848,2613.1,2612.7,0.95520815]
[1729669117878,5.13361911,2613.1,2612.7,0.95520815]
[1729669118085,3.44439,2613.0,2612.5,3.44487]
[1729669118468,5.13361911,2613.1,2612.5,3.44487]
[1729669118695,5.13361911,2613.1,2612.6,3.44484]
[1729669120394,8.57788911,2613.1,2612.5,3.44487]
[1729669120613,3.4442,2613.1,2612.5,5.21083488]
[1729669120773,3.4442,2613.1,2612.6,4.01552349]
[1729669122830,8.57787911,2613.1,2612.6,4.01552349]
[1729669122968,5.13361911,2613.1,2612.6,4.01552349]
[1729669123174,3.4442,2613.1,2612.6,5.7049426]
[1729669123592,3.4442,2613.1,2612.6,0.57068349]
[1729669124204,3.4442,2613.1,2612.7,0.40670217]
[1729669125205,0.8105,2613.2,2612.8,0.496]
[1729669127371,0.8105,2613.2,2612.8,3.94057]
[1729669129210,0.8105,2613.2,2612.8,0.496]
[1729669129703,4.25455,2613.2,2612.8,0.496]
[1729669130009,4.25455,2613.2,2612.8,1.50885754]
[1729669131111,3.44419,2613.1,2612.8,1.50885754]
[1729669131308,3.44419,2613.1,2612.5,3.94087]
[1729669131309,3.44438,2613.0,2612.5,3.94087]
[1729669131511,3.44438,2613.0,2612.5,9.07519911]
[1729669131716,3.44438,2613.0,2612.5,5.63028911]
[1729669132004,3.44438,2613.0,2612.5,9.07517911]
[1729669132215,3.44438,2613.0,2612.6,0.90751791]
[1729669132387,3.44421,2613.1,2612.6,4.35233791]
[1729669134613,3.44421,2613.1,2612.6,6.04175702]
[1729669134796,3.44421,2613.1,2612.6,4.35233791]
[1729669135001,5.13362911,2613.1,2612.6,0.90751791]
[1729669135302,3.44438,2613.0,2612.6,0.90751791]
[1729669136211,0.8221,2612.8,2612.3,10.3863]
[1729669136396,4.26675,2612.8,2612.4,3.44509]
[1729669136577,4.26675,2612.8,2612.4,5.13450911]
[1729669136775,4.26675,2612.8,2612.4,3.44509]
[1729669138206,3.4444,2613.0,2612.5,5.13431911]
[1729669138394,3.4444,2613.0,2612.6,3.94084]
[1729669138726,4.26789,2613.1,2612.6,3.94076]
[1729669138876,3.44431,2613.0,2612.6,0.496]
[1729669139077,6.88872,2613.0,2612.6,0.496]
[1729669139278,8.57813911,2613.0,2612.5,3.4449]
[1729669139497,3.44447,2612.9,2612.5,1.3283024]
[1729669139688,3.44447,2612.9,2612.3,8.13455911]
[1729669139689,0.8237,2612.7,2612.3,3.0]
[1729669139889,4.26844,2612.7,2612.3,3.44523]
[1729669140728,4.26844,2612.7,2612.2,3.94136]
[1729669140938,1.68941911,2612.5,2612.0,0.496]
[1729669141126,1.68941911,2612.2,2612.1,3.28]
[1729669141290,3.44537,2612.2,2611.6,0.496]
[1729669141640,3.44552,2612.1,2611.6,3.94216]
[1729669141796,5.13493911,2612.1,2611.6,0.496]
[1729669142000,3.44565,2612.0,2611.5,5.13557911]
[1729669142306,3.44565,2612.0,2611.5,9.56616883]
[1729669142491,3.44565,2612.0,2611.5,6.04338302]
[1729669142691,3.44565,2612.0,2611.5,6.11995882]
[1729669142895,3.44565,2612.0,2611.5,9.56616882]
[1729669143192,3.44565,2612.0,2611.5,9.48959302]
[1729669144114,3.44565,2612.0,2611.6,5.13556911]
[1729669144326,1.68941911,2612.1,2611.6,3.44615]
[1729669144511,3.4455,2612.1,2611.6,5.13556911]
[1729669144835,5.13481911,2612.2,2611.6,1.68941911]
[1729669145033,3.4454,2612.2,2611.7,3.44601]
[1729669145701,4.24836,2612.3,2611.8,5.211863]
[1729669145908,4.24836,2612.3,2611.8,3.52244389]
[1729669146933,3.44477,2612.7,2612.1,5.13489911]
[1729669146934,4.22484,2612.6,2612.1,5.13489911]
[1729669147139,3.44503,2612.5,2612.0,1.68941911]
[1729669147644,3.44503,2612.5,2612.0,3.44559]
[1729669147971,3.44503,2612.5,2612.0,5.13500911]
[1729669149344,6.89008,2612.5,2612.0,5.13500911]
[1729669150451,3.44503,2612.5,2612.0,5.13500911]
[1729669150746,4.22484,2612.6,2612.1,5.13486911]
[1729669150927,0.78,2612.6,2612.2,5.13469911]
[1729669151127,4.22485,2612.6,2612.2,3.44528]
[1729669151517,0.78,2612.6,2612.2,6.89059]
[1729669151747,0.78,2612.6,2612.2,3.44528]
[1729669152076,0.78,2612.6,2612.3,0.51346991]
[1729669152872,3.44498,2612.5,2612.0,9.56834539]
[1729669153048,3.44498,2612.5,2612.1,1.68941911]
[1729669153371,3.44498,2612.5,2612.1,5.13490911]
[1729669154140,4.22485,2612.6,2612.1,5.13490911]
[1729669154850,4.22485,2612.6,2612.2,1.68941911]
[1729669155175,4.22485,2612.6,2612.3,0.51349091]
[1729669155870,3.44504,2612.5,2612.3,0.51349091]
[1729669156072,3.44497,2612.5,2612.0,6.12276539]
[1729669157075,3.44513,2612.4,2612.0,0.98781628]
[1729669157274,3.44524,2612.3,2611.9,2.18541911]
[1729669157433,3.44511,2612.4,2612.0,1.68941911]
[1729669157638,3.44511,2612.4,2611.9,3.94171]
[1729669157639,3.44511,2612.4,2611.9,5.63112911]
[1729669157861,3.44511,2612.4,2611.9,6.61897439]
[1729669160391,3.44497,2612.5,2612.1,5.13488911]
[1729669160892,0.78,2612.6,2612.2,3.44526]
[1729669162301,4.22485,2612.6,2612.1,1.68941911]
[1729669162580,3.44511,2612.4,2612.0,3.44554]
[1729669162885,3.44511,2612.4,2612.0,4.53216081]
[1729669163583,3.44524,2612.3,2611.9,2.18541911]
[1729669163784,3.44544,2612.2,2611.8,3.0]
[1729669163998,3.44544,2612.2,2611.7,0.496]
[1729669163999,3.44556,2612.1,2611.7,0.496]
[1729669164299,3.44567,2612.0,2611.7,0.496]
[1729669164480,3.44544,2612.2,2611.7,4.7817542]
[1729669165086,6.89088,2612.2,2611.7,4.7817542]
[1729669165264,3.44544,2612.2,2611.7,6.47117331]
[1729669165483,3.44544,2612.2,2611.8,5.13529911]
[1729669165682,4.22368,2612.4,2611.8,5.13520911]
[1729669165864,4.22368,2612.4,2611.9,1.68941911]
[1729669166068,3.44525,2612.3,2611.8,6.23550984]
[1729669166696,3.44525,2612.3,2611.8,9.68132984]
[1729669167492,0.7785,2612.4,2611.9,5.13509911]
[1729669167716,4.22361,2612.4,2611.9,6.15283209]
[1729669170315,4.22361,2612.4,2611.9,2.70715209]
[1729669170631,0.7785,2612.4,2611.9,2.70715209]
[1729669170789,3.44525,2612.3,2611.9,2.70715209]
[1729669171204,3.44525,2612.3,2612.0,0.72532428]
[1729669173707,6.8906,2612.3,2612.0,0.72532428]
[1729669173909,6.8906,2612.3,2611.8,6.23548984]
[1729669174644,0.7785,2612.4,2611.7,1.29752369]
[1729669174827,3.44571,2612.0,2611.7,0.496]
[1729669175032,3.44571,2612.0,2611.7,2.18541911]
[1729669175237,3.44571,2612.0,2611.7,0.496]
[1729669175601,3.44571,2612.0,2611.6,1.76599271]
[1729669175802,3.44571,2612.0,2611.6,2.4606283]
[1729669176232,3.44571,2612.0,2611.6,2.5372019]
[1729669177541,3.44571,2612.0,2611.7,1.68941911]
[1729669178168,0.7657,2612.1,2611.7,1.68941911]
[1729669178322,3.44539,2612.2,2611.9,2.18541911]
[1729669178518,3.44551,2612.1,2611.9,0.496]
[1729669180332,0.811,2612.3,2611.9,0.79469428]
[1729669180670,3.44532,2612.3,2611.9,0.79469428]
[1729669181064,3.44532,2612.3,2611.9,2.48411339]
[1729669182336,3.44532,2612.3,2611.9,0.79469428]
[1729669183747,3.4452,2612.4,2611.9,4.24042428]
[1729669183963,3.4452,2612.4,2612.0,2.54585152]
[1729669184179,3.44525,2612.3,2612.0,0.85643241]
[1729669187672,6.89043,2612.4,2612.0,0.85643241]
[1729669187873,3.44525,2612.3,2612.0,0.85643241]
[1729669188474,3.4452,2612.4,2612.0,0.85643241]
[1729669188475,3.44537,2612.2,2612.0,0.85643241]
[1729669188701,3.44537,2612.2,2611.9,1.59621797]
[1729669189396,3.44537,2612.2,2611.9,3.28563708]
[1729669189950,3.44537,2612.2,2611.9,1.59621797]
[1729669190361,3.44525,2612.3,2611.9,3.28563708]
[1729669190561,3.44525,2612.3,2612.0,0.80152369]
[1729669191351,3.44525,2612.3,2611.9,3.36220072]
[1729669191551,3.44525,2612.3,2612.0,1.68941911]
[1729669191756,3.44511,2612.4,2612.0,0.80152369]
[1729669192095,3.44524,2612.3,2612.0,0.80152369]
[1729669192460,3.44524,2612.3,2612.0,3.63654642]
[1729669192682,3.44524,2612.3,2612.0,1.68941911]
[1729669192886,3.44524,2612.3,2611.9,1.67278159]
[1729669192887,3.44524,2612.3,2611.9,3.3622007]
[1729669193671,6.89056,2612.3,2611.9,3.3622007]
[1729669194068,6.89056,2612.3,2611.9,3.28563708]
[1729669195506,3.44524,2612.3,2611.9,3.28563708]
[1729669195987,3.44524,2612.3,2612.0,0.80152369]
[1729669196498,6.89058,2612.3,2612.0,0.80102862]
[1729669196718,3.44524,2612.3,2612.0,1.60255231]
[1729669196861,3.44524,2612.3,2612.0,0.80102862]
[1729669197061,3.44524,2612.3,2611.9,3.36220068]
[1729669197062,3.44538,2612.2,2611.9,3.28563708]
[1729669197984,3.4453,2612.3,2611.9,3.36220086]
[1729669198694,3.4453,2612.3,2612.0,0.80152369]
[1729669200397,6.89061,2612.3,2612.0,0.80152369]
[1729669200626,6.89062,2612.3,2612.0,0.80152369]
[1729669200781,3.44501,2612.5,2612.2,1.68941911]
[1729669200977,6.8901,2612.5,2612.2,1.68941911]
[1729669201183,3.44478,2612.7,2612.3,2.18541911]
[1729669201520,3.44485,2612.6,2612.3,0.496]
[1729669201716,3.44485,2612.6,2612.3,1.1797486]
[1729669202218,0.8071,2612.8,2612.5,1.68941911]
[1729669202511,3.44471,2612.8,2612.5,1.68941911]
[1729669202684,3.44432,2613.0,2612.5,1.68941911]
[1729669203082,3.44453,2612.9,2612.4,0.07654989]
[1729669203295,3.44432,2613.0,2612.5,1.68941911]
[1729669203518,3.44458,2612.8,2612.5,1.68941911]
[1729669203680,6.88923,2612.8,2612.5,1.68941911]
[1729669203873,3.44458,2612.8,2612.4,2.23971533]
[1729669204277,3.44447,2612.9,2612.5,1.68941911]
[1729669204617,3.44447,2612.9,2612.5,2.72803546]
[1729669205304,3.44447,2612.9,2612.5,1.03861635]
[1729669205491,3.44447,2612.9,2612.5,2.72803546]
[1729669205686,6.88901,2612.9,2612.5,2.72803546]
[1729669205876,3.44447,2612.9,2612.5,2.72803546]
[1729669206282,3.44447,2612.9,2612.5,1.03861635]
[1729669206979,3.44459,2612.8,2612.5,1.03861635]
[1729669207176,3.44459,2612.8,2612.4,1.68941911]
[1729669208017,1.68941911,2612.6,2612.4,0.80152369]
[1729669208315,4.23367,2612.5,2612.4,0.80152369]
[1729669208707,5.92308911,2612.5,2612.4,0.80152369]
[1729669212694,4.83290373,2612.5,2612.4,0.80152369]
[1729669213003,6.52232284,2612.5,2612.4,0.80152369]
[1729669215079,4.83290373,2612.5,2612.4,0.80152369]
[1729669216854,6.52232284,2612.5,2612.4,0.80152369]
[1729669217542,5.92308911,2612.5,2612.4,0.80152369]
[1729669217891,6.52230816,2612.5,2612.4,0.80152369]
[1729669218096,3.44521,2612.4,2612.0,0.80152369]
[1729669218833,3.44537,2612.2,2612.0,0.80152369]
[1729669219043,3.44537,2612.2,2611.9,0.80152369]
[1729669220004,3.44524,2612.3,2611.9,0.80152369]
[1729669222818,6.89041,2612.4,2611.9,4.24728369]
[1729669223188,4.83290905,2612.5,2612.1,1.29752369]
[1729669223485,3.44511,2612.4,2612.1,1.29752369]
[1729669225254,0.59921905,2612.5,2612.1,4.74301369]
[1729669225585,0.59921905,2612.5,2612.1,6.03693981]
[1729669226089,0.59921905,2612.5,2612.2,0.80152369]
[1729669226452,0.59921905,2612.5,2612.1,6.03693981]
[1729669226984,4.04420905,2612.5,2612.1,6.03693981]
[1729669228797,0.59921905,2612.5,2612.3,0.80152369]
[1729669229009,0.59921905,2612.5,2612.4,1.21751382]
[1729669233001,0.59921905,2612.5,2612.4,0.496]
[1729669233590,0.59921905,2612.5,2612.2,1.29752369]
[1729669234857,4.04419905,2612.5,2612.2,1.29752369]
[1729669235162,2.51301911,2612.3,2611.9,0.80152369]
[1729669235365,0.8236,2612.3,2611.8,0.80152369]
[1729669235573,3.44537,2612.2,2611.9,0.80152369]
[1729669235781,6.89082,2612.2,2611.8,2.4909428]
[1729669235958,3.44537,2612.2,2611.8,2.4909428]
[1729669236593,3.44537,2612.2,2611.9,0.80152369]
[1729669237004,3.44552,2612.1,2611.9,0.80152369]
[1729669237989,3.44552,2612.1,2611.8,2.4909428]
[1729669238456,3.44552,2612.1,2611.8,3.42244239]
[1729669239281,3.44552,2612.1,2611.8,1.73302328]
[1729669239983,3.44571,2612.0,2611.8,0.80152369]
[1729669240159,3.44589,2611.8,2611.6,0.80152369]
[1729669240369,2.45991911,2612.0,2611.6,0.80152369]
[1729669240568,3.44616,2611.6,2611.5,0.80152369]
[1729669240789,3.44629,2611.5,2611.4,3.28]
[1729669241269,4.21666,2611.6,2611.2,0.496]
[1729669242608,1.68941911,2611.4,2611.1,0.80152369]
[1729669242788,1.68941911,2611.4,2610.9,1.69828553]
[1729669242789,3.44642,2611.4,2611.0,2.4909428]
[1729669242986,3.4465,2611.4,2611.0,2.4909428]
[1729669243187,3.4465,2611.4,2611.0,1.68941911]
[1729669243683,3.44656,2611.3,2610.9,2.9869428]
[1729669243885,3.44656,2611.3,2610.9,3.78245955]
[1729669244088,3.44656,2611.3,2610.9,2.98093586]
[1729669244462,3.4463,2611.5,2611.1,1.68941911]
[1729669245206,5.13552911,2611.7,2611.3,1.68941911]
[1729669245207,3.44611,2611.7,2611.3,1.68941911]
[1729669245389,6.89222,2611.7,2611.3,0.496]
[1729669245718,3.44611,2611.7,2611.3,0.496]
[1729669245924,3.44611,2611.7,2611.3,2.75628189]
[1729669246123,3.44611,2611.7,2611.3,1.06686278]
[1729669246621,3.44617,2611.6,2611.3,1.06686278]
[1729669246916,3.4461,2611.7,2611.3,1.06686278]
[1729669247069,6.89221,2611.7,2611.3,1.06686278]
[1729669247474,6.89223,2611.7,2611.3,1.06686278]
[1729669248722,3.44616,2611.6,2611.3,0.57086278]
[1729669248913,3.44616,2611.6,2611.1,5.63222911]
[1729669249533,3.44629,2611.5,2611.1,2.18541911]
[1729669249828,3.44629,2611.5,2611.1,0.496]
[1729669250026,3.44643,2611.4,2611.1,0.496]
[1729669250242,3.44643,2611.4,2610.9,0.71892283]
[1729669250243,4.24533,2611.4,2610.9,1.68941911]
[1729669250600,3.44656,2611.3,2610.9,1.68941911]
[1729669250931,3.44656,2611.3,2610.9,2.70942065]
[1729669251815,3.44656,2611.3,2610.9,2.63282639]
[1729669252729,7.69187,2611.4,2610.9,2.63282639]
[1729669253300,4.24533,2611.4,2610.9,2.63282639]
[1729669253505,7.69188,2611.4,2610.9,2.63282639]
[1729669253706,3.44658,2611.3,2610.8,8.63254911]
[1729669254023,3.44658,2611.3,2610.9,1.68941911]
[1729669254188,3.44658,2611.3,2610.8,12.07968911]
[1729669254387,3.44658,2611.3,2610.8,8.63254911]
[1729669254587,3.44658,2611.3,2610.8,9.57595639]
[1729669254825,4.24533,2611.4,2610.9,1.68941911]
[1729669255026,7.69187,2611.4,2610.9,5.13648911]
[1729669255395,4.24533,2611.4,2610.9,5.13648911]
[1729669255801,7.69185,2611.4,2610.9,5.13648911]
[1729669256030,4.24533,2611.4,2610.9,6.15485366]
[1729669256691,7.69182,2611.4,2610.9,6.15485366]
[1729669257214,4.24533,2611.4,2610.9,6.15485366]
[1729669258794,4.24533,2611.4,2610.9,6.23144794]
[1729669259695,7.69185,2611.4,2610.9,6.15485366]
[1729669259924,4.24533,2611.4,2610.9,5.13648911]
[1729669260239,7.69182,2611.4,2610.9,5.13648911]
[1729669260594,3.44659,2611.3,2610.8,6.12882639]
[1729669260817,3.44678,2611.2,2610.8,3.94340728]
[1729669261030,4.26538,2611.2,2610.8,3.0]
[1729669261870,0.8186,2611.2,2610.8,4.68941911]
[1729669262164,4.27265,2611.4,2610.9,3.44708]
[1729669262315,4.27265,2611.4,2610.8,4.68941911]
[1729669262316,3.44669,2611.2,2610.8,4.68941911]
[1729669262512,3.44662,2611.3,2610.8,8.13662911]
[1729669262713,5.13603911,2611.3,2610.7,3.44722]
[1729669262917,3.44682,2611.1,2610.7,3.44722]
[1729669263352,0.7654,2611.0,2610.7,3.44722]
[1729669263522,0.7654,2611.0,2610.6,2.18541911]
[1729669263933,3.44682,2611.1,2610.6,2.18541911]
[1729669264522,3.44682,2611.1,2610.7,3.44732]
[1729669267130,5.13623911,2611.1,2610.7,3.44732]
[1729669267360,3.44682,2611.1,2610.7,3.44732]
[1729669267675,0.8006,2610.6,2610.2,0.496]
[1729669267888,1.68941911,2610.4,2610.1,0.80152369]
[1729669268452,3.44776,2610.4,2610.1,0.80152369]
[1729669268760,1.68941911,2610.4,2610.1,0.80152369]
[1729669268983,5.13718911,2610.4,2610.1,0.80152369]
[1729669269688,3.44788,2610.3,2609.9,0.496]
[1729669269986,5.13718911,2610.4,2609.9,0.496]
[1729669270358,1.68941911,2610.0,2609.6,1.29752369]
[1729669270593,5.13808911,2609.7,2609.6,0.80152369]
[1729669271177,3.44867,2609.7,2609.6,0.80152369]
[1729669271387,4.20955,2609.8,2609.6,0.80152369]
[1729669271888,3.44867,2609.7,2609.6,0.80152369]
[1729669272094,9.34761911,2609.8,2609.6,0.80152369]
[1729669272248,7.65817,2609.8,2609.6,0.80152369]
[1729669272448,4.20955,2609.8,2609.6,0.80152369]
[1729669272849,3.44867,2609.7,2609.6,0.80152369]
[1729669275695,7.65816,2609.8,2609.6,0.80152369]
[1729669275901,3.44867,2609.7,2609.6,0.80152369]
[1729669277203,4.20955,2609.8,2609.6,0.80152369]
[1729669277856,7.6582,2609.8,2609.6,0.80152369]
[1729669278293,4.20955,2609.8,2609.6,0.80152369]
[1729669278493,7.65819,2609.8,2609.6,0.80152369]
[1729669278671,4.20955,2609.8,2609.6,0.80152369]
[1729669279024,3.44867,2609.7,2609.6,0.80152369]
[1729669279540,7.65816,2609.8,2609.6,0.80152369]
[1729669279713,7.65816,2609.8,2609.2,3.94525]
[1729669280459,4.20955,2609.8,2609.2,3.94525]
[1729669280730,7.65818,2609.8,2609.2,3.94525]
[1729669281158,3.44868,2609.7,2609.2,3.94525]
[1729669281557,4.20955,2609.8,2609.3,3.44918]
[1729669281791,4.20955,2609.8,2609.2,3.94525]
[1729669282003,7.65821,2609.8,2609.2,3.94525]
[1729669282160,7.65817,2609.8,2609.2,3.94525]
[1729669282362,3.44871,2609.7,2609.2,3.94525]
[1729669282561,4.20955,2609.8,2609.2,3.94525]
[1729669283109,7.65818,2609.8,2609.2,3.94525]
[1729669283872,6.89672,2610.0,2609.4,3.44897]
[1729669284215,4.21431,2610.2,2609.7,3.94463]
[1729669284390,4.21431,2610.2,2609.7,0.496]
[1729669284593,4.21431,2610.2,2609.7,3.94458]
[1729669284782,0.7661,2610.4,2610.0,3.44819]
[1729669285116,4.21392,2610.4,2609.8,3.44844]
[1729669285320,4.21392,2610.4,2609.8,6.8969]
[1729669285519,4.21392,2610.4,2609.9,3.44839]
[1729669285813,4.21392,2610.4,2609.9,0.77949797]
[1729669286382,4.21392,2610.4,2609.9,4.22784797]
[1729669287055,7.66173,2610.4,2609.9,4.22784797]
[1729669287177,0.7661,2610.4,2610.0,3.44826]
[1729669287576,4.21391,2610.4,2609.9,4.22781797]
[1729669288228,0.7661,2610.4,2610.1,3.44813]
[1729669288914,7.64871,2610.6,2610.1,3.44813]
[1729669289224,4.20115,2610.6,2610.0,3.8710518]
[1729669289379,3.44776,2610.4,2610.0,0.4227818]
[1729669289713,0.8279,2610.2,2609.7,3.94456]
[1729669290104,0.8279,2610.2,2609.8,3.44851]
[1729669290415,0.8279,2610.2,2609.7,0.496]
[1729669290714,0.8279,2610.2,2609.7,3.496]
[1729669291102,0.8279,2610.2,2609.5,3.94486]
[1729669291441,4.2667561,2610.2,2609.3,7.39427]
[1729669291594,3.44834,2610.0,2609.3,3.94511]
[1729669291796,3.44834,2610.0,2609.3,7.39423]
[1729669292635,3.44834,2610.0,2609.4,3.44905]
[1729669292942,0.8126,2609.9,2609.4,3.44905]